[Event "Titled Tuesday Blitz March 07 Late 2023"]
[White "Gubajdullin, Alexei"]
[Black "EREBUNI91"]
[WhiteFideId "4141202"]
[WhiteElo "2267"]
[BlackElo "2745"]
[Result "0-1"]
[Round "07"]
[TimeControl "180+2"]
[Date "2023.03.07"]
[WhiteClock "0:00:31"]
[BlackClock "0:01:21"]

1. d4 {[%clk 0:02:59]}  Nf6 {[%clk 0:02:59]} 2. Nf3 {[%clk 0:02:59]}  d5 {[%clk 0:02:59]} 3. Bf4 {[%clk 0:02:59]}  c5 {[%clk 0:02:59]} 4. e3 {[%clk 0:03:00]}  Nc6 {[%clk 0:02:58]} 5. Nbd2 {[%clk 0:03:00]}  Bg4 {[%clk 0:02:58]} 6. c3 {[%clk 0:02:59]}  e6 {[%clk 0:02:56]} 7. Qb3 {[%clk 0:02:59]}  Qc8 {[%clk 0:02:50]} 8. Ne5 {[%clk 0:02:59]}  Nxe5 {[%clk 0:02:49]} 9. dxe5 {[%clk 0:02:58]}  c4 {[%clk 0:02:46]} 10. Nxc4 {[%clk 0:02:52]}  dxc4 {[%clk 0:02:44]} 11. Bxc4 {[%clk 0:02:52]}  Nd7 {[%clk 0:02:40]} 12. f3 {[%clk 0:02:47]}  Bf5 {[%clk 0:02:31]} 13. e4 {[%clk 0:02:45]}  Bg6 {[%clk 0:02:31]} 14. O-O-O {[%clk 0:02:40]}  a6 {[%clk 0:02:28]} 15. Bxe6 {[%clk 0:02:38]}  fxe6 {[%clk 0:02:24]} 16. Qxe6+ {[%clk 0:02:37]}  Be7 {[%clk 0:02:20]} 17. Bg5 {[%clk 0:02:05]}  Qd8 {[%clk 0:02:15]} 18. h4 {[%clk 0:01:58]}  Bf7 {[%clk 0:02:13]} 19. Qg4 {[%clk 0:01:56]}  h5 {[%clk 0:02:06]} 20. Qg3 {[%clk 0:01:46]}  Bxg5+ {[%clk 0:02:02]} 21. hxg5 {[%clk 0:01:45]}  Qa5 {[%clk 0:01:47]} 22. g6 {[%clk 0:01:09]}  Be6 {[%clk 0:01:44]} 23. Rd6 {[%clk 0:01:07]}  Qxa2 {[%clk 0:01:39]} 24. Rhd1 {[%clk 0:01:03]}  O-O-O {[%clk 0:01:36]} 25. Qg5 {[%clk 0:00:55]}  Bb3 {[%clk 0:01:33]} 26. R1d4 {[%clk 0:00:33]}  Qa1+ {[%clk 0:01:29]} 27. Kd2 {[%clk 0:00:33]}  Qd1+ {[%clk 0:01:29]} 28. Ke3 {[%clk 0:00:32]}  Qe1+ {[%clk 0:01:23]} 29. Kf4 {[%clk 0:00:31]}  Rhf8+ {[%clk 0:01:21]} 0-1


[Site "https://www.chess.com"]

[Event "Titled Tuesday Blitz March 07 Late 2023"]
[White "Janaszak, Dawid"]
[Black "Adewumi, Tanitoluwa"]
[WhiteFideId "1119206"]
[BlackFideId "30966396"]
[WhiteElo "2220"]
[BlackElo "2742"]
[Result "0-1"]
[Round "07"]
[TimeControl "180+2"]
[Date "2023.03.07"]
[WhiteClock "0:00:10"]
[BlackClock "0:00:08"]

1. e4 {[%clk 0:03:00]}  c5 {[%clk 0:02:58]} 2. Nc3 {[%clk 0:03:00]}  Nc6 {[%clk 0:02:58]} 3. Bb5 {[%clk 0:02:59]}  Nd4 {[%clk 0:02:57]} 4. Nf3 {[%clk 0:03:00]}  e6 {[%clk 0:02:56]} 5. O-O {[%clk 0:03:00]}  a6 {[%clk 0:02:56]} 6. Bd3 {[%clk 0:02:59]}  b5 {[%clk 0:02:56]} 7. Nxd4 {[%clk 0:02:56]}  cxd4 {[%clk 0:02:56]} 8. Ne2 {[%clk 0:02:56]}  Bc5 {[%clk 0:02:55]} 9. b3 {[%clk 0:02:51]}  Bb7 {[%clk 0:02:53]} 10. Bb2 {[%clk 0:02:51]}  e5 {[%clk 0:02:12]} 11. c3 {[%clk 0:02:51]}  dxc3 {[%clk 0:02:11]} 12. dxc3 {[%clk 0:02:44]}  d6 {[%clk 0:02:04]} 13. a4 {[%clk 0:02:40]}  Bc6 {[%clk 0:01:38]} 14. b4 {[%clk 0:02:33]}  Bb6 {[%clk 0:01:32]} 15. c4 {[%clk 0:02:23]}  bxc4 {[%clk 0:01:25]} 16. Bxc4 {[%clk 0:02:21]}  Nf6 {[%clk 0:01:24]} 17. a5 {[%clk 0:02:08]}  Ba7 {[%clk 0:01:08]} 18. Rc1 {[%clk 0:02:01]}  O-O {[%clk 0:00:50]} 19. Bxf7+ {[%clk 0:01:58]}  Rxf7 {[%clk 0:00:51]} 20. Rxc6 {[%clk 0:01:58]}  Nxe4 {[%clk 0:00:50]} 21. Qd5 {[%clk 0:01:01]}  Nxf2 {[%clk 0:00:32]} 22. Rxa6 {[%clk 0:00:38]}  Kf8 {[%clk 0:00:15]} 23. Rxa7 {[%clk 0:00:35]}  Nh3+ {[%clk 0:00:05]} 24. gxh3 {[%clk 0:00:33]}  Qg5+ {[%clk 0:00:05]} 25. Ng3 {[%clk 0:00:21]}  Rxf1+ {[%clk 0:00:05]} 26. Kxf1 {[%clk 0:00:21]}  Rxa7 {[%clk 0:00:06]} 27. Qxd6+ {[%clk 0:00:20]}  Re7 {[%clk 0:00:03]} 28. Bc3 {[%clk 0:00:09]}  Qf4+ {[%clk 0:00:02]} 29. Ke2 {[%clk 0:00:08]}  Qc4+ {[%clk 0:00:03]} 30. Kd2 {[%clk 0:00:08]}  Ke8 {[%clk 0:00:03]} 31. Qb8+ {[%clk 0:00:03]}  Kf7 {[%clk 0:00:03]} 32. Bxe5 {[%clk 0:00:02]}  Rd7+ {[%clk 0:00:03]} 33. Bd6 {[%clk 0:00:03]}  Qf4+ {[%clk 0:00:04]} 34. Kc3 {[%clk 0:00:02]}  Rxd6 {[%clk 0:00:04]} 35. Qb7+ {[%clk 0:00:02]}  Ke6 {[%clk 0:00:02]} 36. Qc8+ {[%clk 0:00:02]}  Ke7 {[%clk 0:00:03]} 37. Qc7+ {[%clk 0:00:02]}  Ke8 {[%clk 0:00:03]} 38. Qc8+ {[%clk 0:00:02]}  Rd8 {[%clk 0:00:03]} 39. Qe6+ {[%clk 0:00:02]}  Kf8 {[%clk 0:00:03]} 40. Qf5+ {[%clk 0:00:03]}  Qxf5 {[%clk 0:00:04]} 41. Nxf5 {[%clk 0:00:04]}  Kf7 {[%clk 0:00:03]} 42. b5 {[%clk 0:00:03]}  Ke6 {[%clk 0:00:04]} 43. Nd4+ {[%clk 0:00:04]}  Kd5 {[%clk 0:00:04]} 44. a6 {[%clk 0:00:04]}  Kc5 {[%clk 0:00:04]} 45. a7 {[%clk 0:00:04]}  Ra8 {[%clk 0:00:05]} 46. Nc6 {[%clk 0:00:04]}  Kxb5 {[%clk 0:00:05]} 47. Ne5 {[%clk 0:00:02]}  Rxa7 {[%clk 0:00:05]} 48. Kd4 {[%clk 0:00:03]}  Kb6 {[%clk 0:00:05]} 49. h4 {[%clk 0:00:04]}  Re7 {[%clk 0:00:05]} 50. Ke4 {[%clk 0:00:05]}  Kc5 {[%clk 0:00:05]} 51. Kf5 {[%clk 0:00:06]}  Kd5 {[%clk 0:00:06]} 52. Nf3 {[%clk 0:00:06]}  Rf7+ {[%clk 0:00:06]} 53. Kg4 {[%clk 0:00:06]}  h6 {[%clk 0:00:06]} 54. h5 {[%clk 0:00:07]}  Ke4 {[%clk 0:00:07]} 55. Nh4 {[%clk 0:00:07]}  Rf4+ {[%clk 0:00:07]} 56. Kg3 {[%clk 0:00:08]}  Rf6 {[%clk 0:00:06]} 57. Ng6 {[%clk 0:00:08]}  Kf5 {[%clk 0:00:06]} 58. h3 {[%clk 0:00:09]}  Kg5 {[%clk 0:00:06]} 59. h4+ {[%clk 0:00:09]}  Kxh5 {[%clk 0:00:07]} 60. Nf4+ {[%clk 0:00:10]}  Rxf4 {[%clk 0:00:07]} 61. Kxf4 {[%clk 0:00:10]}  Kxh4 {[%clk 0:00:08]} 0-1


[Site "https://www.chess.com"]

[Event "Titled Tuesday Blitz March 07 Late 2023"]
[White "Iliaguev, Nisim"]
[Black "Do Nascimento,Christian Almeida"]
[WhiteFideId "2817276"]
[BlackFideId "2143801"]
[WhiteElo "2241"]
[BlackElo "2125"]
[Result "1-0"]
[Round "07"]
[TimeControl "180+2"]
[Date "2023.03.07"]
[WhiteClock "0:01:59"]
[BlackClock "0:00:08"]

1. d4 {[%clk 0:03:00]}  d5 {[%clk 0:02:54]} 2. Nf3 {[%clk 0:03:00]}  Nf6 {[%clk 0:02:52]} 3. g3 {[%clk 0:02:55]}  g6 {[%clk 0:02:47]} 4. Bg2 {[%clk 0:02:52]}  Bg7 {[%clk 0:02:47]} 5. O-O {[%clk 0:02:52]}  O-O {[%clk 0:02:47]} 6. c4 {[%clk 0:02:49]}  dxc4 {[%clk 0:02:46]} 7. Ne5 {[%clk 0:02:46]}  Nbd7 {[%clk 0:02:44]} 8. Nxc4 {[%clk 0:02:46]}  Nb6 {[%clk 0:02:44]} 9. Ne5 {[%clk 0:02:46]}  c6 {[%clk 0:02:40]} 10. Nc3 {[%clk 0:02:46]}  Nfd5 {[%clk 0:02:36]} 11. Qb3 {[%clk 0:02:41]}  Be6 {[%clk 0:02:33]} 12. Nxd5 {[%clk 0:02:39]}  Bxd5 {[%clk 0:02:30]} 13. Bxd5 {[%clk 0:02:40]}  Qxd5 {[%clk 0:02:28]} 14. Qxd5 {[%clk 0:02:38]}  cxd5 {[%clk 0:02:21]} 15. Bd2 {[%clk 0:02:35]}  Rac8 {[%clk 0:02:12]} 16. Rac1 {[%clk 0:02:32]}  Bxe5 {[%clk 0:01:53]} 17. dxe5 {[%clk 0:02:32]}  Rxc1 {[%clk 0:01:53]} 18. Rxc1 {[%clk 0:02:32]}  Rc8 {[%clk 0:01:54]} 19. Rxc8+ {[%clk 0:02:32]}  Nxc8 {[%clk 0:01:54]} 20. Be3 {[%clk 0:02:29]}  Kf8 {[%clk 0:01:31]} 21. f4 {[%clk 0:02:28]}  Ke8 {[%clk 0:01:30]} 22. g4 {[%clk 0:02:28]}  Kd7 {[%clk 0:01:30]} 23. Bd4 {[%clk 0:02:25]}  b6 {[%clk 0:01:18]} 24. Kf2 {[%clk 0:02:24]}  Ke6 {[%clk 0:01:05]} 25. Kf3 {[%clk 0:02:24]}  f5 {[%clk 0:01:04]} 26. exf6 {[%clk 0:02:22]}  exf6 {[%clk 0:01:04]} 27. e4 {[%clk 0:02:22]}  dxe4+ {[%clk 0:01:04]} 28. Kxe4 {[%clk 0:02:22]}  Nd6+ {[%clk 0:01:02]} 29. Kd3 {[%clk 0:02:22]}  f5 {[%clk 0:01:00]} 30. h3 {[%clk 0:02:21]}  fxg4 {[%clk 0:01:00]} 31. hxg4 {[%clk 0:02:21]}  h5 {[%clk 0:01:00]} 32. f5+ {[%clk 0:02:20]}  gxf5 {[%clk 0:00:52]} 33. gxh5 {[%clk 0:02:20]}  Kf7 {[%clk 0:00:36]} 34. Ke3 {[%clk 0:02:19]}  Ne4 {[%clk 0:00:30]} 35. Kf4 {[%clk 0:02:15]}  Nf6 {[%clk 0:00:23]} 36. h6 {[%clk 0:02:11]}  Kg6 {[%clk 0:00:23]} 37. Bxf6 {[%clk 0:02:10]}  Kxf6 {[%clk 0:00:24]} 38. h7 {[%clk 0:02:11]}  Kg7 {[%clk 0:00:24]} 39. Kxf5 {[%clk 0:02:11]}  Kxh7 {[%clk 0:00:25]} 40. Ke6 {[%clk 0:02:12]}  Kg6 {[%clk 0:00:26]} 41. Kd6 {[%clk 0:02:12]}  Kf5 {[%clk 0:00:26]} 42. Kc6 {[%clk 0:02:12]}  Ke4 {[%clk 0:00:17]} 43. Kb7 {[%clk 0:02:13]}  Kd4 {[%clk 0:00:10]} 44. Kxa7 {[%clk 0:02:12]}  Kc5 {[%clk 0:00:08]} 45. Ka6 {[%clk 0:02:12]}  b5 {[%clk 0:00:08]} 46. Ka5 {[%clk 0:02:01]}  Kc4 {[%clk 0:00:08]} 47. b4 {[%clk 0:01:59]} 1-0


[Site "https://www.chess.com"]

[Event "Titled Tuesday Blitz March 07 Late 2023"]
[White "Pert, Richard G"]
[Black "Fernandez Guillen, Ernesto J."]
[WhiteFideId "404748"]
[BlackFideId "3512428"]
[WhiteElo "2441"]
[BlackElo "2423"]
[Result "1/2-1/2"]
[Round "07"]
[TimeControl "180+2"]
[Date "2023.03.07"]
[WhiteClock "0:00:03"]
[BlackClock "0:00:15"]

1. Nf3 {[%clk 0:02:59]}  Nf6 {[%clk 0:02:59]} 2. d4 {[%clk 0:02:57]}  g6 {[%clk 0:02:59]} 3. c4 {[%clk 0:02:54]}  Bg7 {[%clk 0:02:59]} 4. Nc3 {[%clk 0:02:54]}  d6 {[%clk 0:03:00]} 5. e4 {[%clk 0:02:53]}  O-O {[%clk 0:03:01]} 6. Be2 {[%clk 0:02:52]}  e5 {[%clk 0:03:02]} 7. Be3 {[%clk 0:02:48]}  Nc6 {[%clk 0:03:01]} 8. d5 {[%clk 0:02:45]}  Ne7 {[%clk 0:03:02]} 9. Nd2 {[%clk 0:02:45]}  Ne8 {[%clk 0:03:02]} 10. f3 {[%clk 0:02:45]}  f5 {[%clk 0:03:03]} 11. Qc2 {[%clk 0:02:45]}  f4 {[%clk 0:03:04]} 12. Bf2 {[%clk 0:02:43]}  g5 {[%clk 0:03:04]} 13. h3 {[%clk 0:02:35]}  Ng6 {[%clk 0:03:02]} 14. O-O-O {[%clk 0:02:34]}  h5 {[%clk 0:03:00]} 15. c5 {[%clk 0:02:33]}  Rf7 {[%clk 0:02:59]} 16. Kb1 {[%clk 0:02:32]}  Bf8 {[%clk 0:02:58]} 17. Nb3 {[%clk 0:02:14]}  b6 {[%clk 0:02:56]} 18. cxd6 {[%clk 0:02:09]}  cxd6 {[%clk 0:02:57]} 19. Rc1 {[%clk 0:02:08]}  Bd7 {[%clk 0:02:57]} 20. Ba6 {[%clk 0:02:06]}  g4 {[%clk 0:02:55]} 21. hxg4 {[%clk 0:02:04]}  hxg4 {[%clk 0:02:56]} 22. Qe2 {[%clk 0:02:00]}  g3 {[%clk 0:02:56]} 23. Be1 {[%clk 0:01:56]}  Nc7 {[%clk 0:02:54]} 24. Bb7 {[%clk 0:01:53]}  Rb8 {[%clk 0:02:53]} 25. Bc6 {[%clk 0:01:53]}  Bc8 {[%clk 0:02:52]} 26. Bd2 {[%clk 0:01:50]}  a6 {[%clk 0:02:52]} 27. a4 {[%clk 0:01:37]}  b5 {[%clk 0:02:52]} 28. axb5 {[%clk 0:01:31]}  axb5 {[%clk 0:02:49]} 29. Na2 {[%clk 0:01:28]}  Na6 {[%clk 0:02:44]} 30. Ba5 {[%clk 0:01:26]}  Qg5 {[%clk 0:02:38]} 31. Bxb5 {[%clk 0:01:20]}  Nc5 {[%clk 0:02:36]} 32. Nxc5 {[%clk 0:01:17]}  dxc5 {[%clk 0:02:37]} 33. d6 {[%clk 0:01:08]}  Be6 {[%clk 0:02:37]} 34. Bc7 {[%clk 0:01:07]}  Ra8 {[%clk 0:02:36]} 35. Bc4 {[%clk 0:01:03]}  Qf6 {[%clk 0:02:37]} 36. Nc3 {[%clk 0:01:01]}  Bxd6 {[%clk 0:02:30]} 37. Bxd6 {[%clk 0:00:57]}  Bxc4 {[%clk 0:02:30]} 38. Qxc4 {[%clk 0:00:56]}  Qxd6 {[%clk 0:02:30]} 39. Rh7 {[%clk 0:00:53]}  Ra7 {[%clk 0:02:30]} 40. Rd1 {[%clk 0:00:50]}  Qxd1+ {[%clk 0:02:24]} 41. Nxd1 {[%clk 0:00:50]}  Kxh7 {[%clk 0:02:25]} 42. Nc3 {[%clk 0:00:46]}  Rab7 {[%clk 0:02:19]} 43. Qe6 {[%clk 0:00:45]}  Rfe7 {[%clk 0:02:10]} 44. Qf5 {[%clk 0:00:43]}  Rb8 {[%clk 0:02:00]} 45. Nd5 {[%clk 0:00:42]}  Reb7 {[%clk 0:02:00]} 46. Nf6+ {[%clk 0:00:38]}  Kg7 {[%clk 0:02:00]} 47. Ng4 {[%clk 0:00:28]}  Re7 {[%clk 0:01:11]} 48. Qf6+ {[%clk 0:00:25]}  Kh7 {[%clk 0:01:12]} 49. Qg5 {[%clk 0:00:25]}  Rb6 {[%clk 0:01:09]} 50. Nf6+ {[%clk 0:00:19]}  Kg7 {[%clk 0:01:02]} 51. Nd5 {[%clk 0:00:17]}  Reb7 {[%clk 0:01:02]} 52. Nxb6 {[%clk 0:00:17]}  Rxb6 {[%clk 0:01:03]} 53. Qd8 {[%clk 0:00:16]}  Rb4 {[%clk 0:00:59]} 54. Qc7+ {[%clk 0:00:13]}  Kh6 {[%clk 0:00:58]} 55. Qxc5 {[%clk 0:00:13]}  Rd4 {[%clk 0:00:59]} 56. b4 {[%clk 0:00:12]}  Rd2 {[%clk 0:00:59]} 57. b5 {[%clk 0:00:12]}  Rxg2 {[%clk 0:00:58]} 58. b6 {[%clk 0:00:12]}  Rh2 {[%clk 0:00:58]} 59. b7 {[%clk 0:00:12]}  g2 {[%clk 0:00:58]} 60. b8=Q {[%clk 0:00:10]}  Rh1+ {[%clk 0:00:58]} 61. Kc2 {[%clk 0:00:10]}  g1=Q {[%clk 0:00:59]} 62. Qxg1 {[%clk 0:00:10]}  Rxg1 {[%clk 0:01:00]} 63. Qd8 {[%clk 0:00:08]}  Rg3 {[%clk 0:00:57]} 64. Qd1 {[%clk 0:00:07]}  Kh5 {[%clk 0:00:53]} 65. Kc3 {[%clk 0:00:07]}  Nh4 {[%clk 0:00:53]} 66. Kc4 {[%clk 0:00:07]}  Nxf3 {[%clk 0:00:52]} 67. Kd5 {[%clk 0:00:07]}  Kg4 {[%clk 0:00:52]} 68. Qb1 {[%clk 0:00:06]}  Rg2 {[%clk 0:00:51]} 69. Qb8 {[%clk 0:00:05]}  Rd2+ {[%clk 0:00:51]} 70. Ke6 {[%clk 0:00:05]}  Ng5+ {[%clk 0:00:51]} 71. Kxe5 {[%clk 0:00:06]}  f3 {[%clk 0:00:50]} 72. Qc8+ {[%clk 0:00:05]}  Kg3 {[%clk 0:00:48]} 73. Qg8 {[%clk 0:00:05]}  Kg4 {[%clk 0:00:47]} 74. Qc8+ {[%clk 0:00:05]}  Kg3 {[%clk 0:00:41]} 75. Qg8 {[%clk 0:00:05]}  Kh4 {[%clk 0:00:30]} 76. Kf4 {[%clk 0:00:05]}  Nh3+ {[%clk 0:00:23]} 77. Kxf3 {[%clk 0:00:05]}  Rf2+ {[%clk 0:00:24]} 78. Ke3 {[%clk 0:00:05]}  Rf1 {[%clk 0:00:22]} 79. Qh8+ {[%clk 0:00:05]}  Kg4 {[%clk 0:00:21]} 80. Qc8+ {[%clk 0:00:05]}  Kg3 {[%clk 0:00:22]} 81. Qc7+ {[%clk 0:00:05]}  Kg4 {[%clk 0:00:22]} 82. Qc8+ {[%clk 0:00:05]}  Kg3 {[%clk 0:00:22]} 83. e5 {[%clk 0:00:05]}  Re1+ {[%clk 0:00:21]} 84. Kd4 {[%clk 0:00:05]}  Nf4 {[%clk 0:00:20]} 85. Qg8+ {[%clk 0:00:04]}  Kf3 {[%clk 0:00:21]} 86. Qa8+ {[%clk 0:00:04]}  Kg4 {[%clk 0:00:20]} 87. Qg8+ {[%clk 0:00:04]}  Kf5 {[%clk 0:00:19]} 88. Qf8+ {[%clk 0:00:04]}  Kg5 {[%clk 0:00:19]} 89. Qf6+ {[%clk 0:00:04]}  Kg4 {[%clk 0:00:19]} 90. Qg7+ {[%clk 0:00:04]}  Kf3 {[%clk 0:00:20]} 91. Qb7+ {[%clk 0:00:03]}  Kg3 {[%clk 0:00:18]} 92. Qg7+ {[%clk 0:00:03]}  Kh4 {[%clk 0:00:14]} 93. Qh6+ {[%clk 0:00:03]}  Kg4 {[%clk 0:00:14]} 94. Qg7+ {[%clk 0:00:03]}  Kf5 {[%clk 0:00:14]} 95. Qf7+ {[%clk 0:00:03]}  Kg4 {[%clk 0:00:15]} 96. Qg7+ {[%clk 0:00:03]} 1/2-1/2


[Site "https://www.chess.com"]

[Event "Titled Tuesday Blitz March 07 Late 2023"]
[White "Korchmar, Vasiliy"]
[Black "Kochetov, Andrey"]
[WhiteFideId "24131750"]
[BlackFideId "24130532"]
[WhiteElo "2370"]
[BlackElo "2528"]
[Result "1-0"]
[Round "07"]
[TimeControl "180+2"]
[Date "2023.03.07"]
[WhiteClock "0:01:28"]
[BlackClock "0:00:12"]

1. e4 {[%clk 0:03:00]}  c5 {[%clk 0:02:58]} 2. Nf3 {[%clk 0:03:00]}  d6 {[%clk 0:02:59]} 3. d4 {[%clk 0:03:00]}  cxd4 {[%clk 0:02:59]} 4. Nxd4 {[%clk 0:03:01]}  Nf6 {[%clk 0:03:00]} 5. Nc3 {[%clk 0:03:02]}  Nc6 {[%clk 0:03:01]} 6. Be2 {[%clk 0:03:01]}  a6 {[%clk 0:02:56]} 7. O-O {[%clk 0:03:00]}  e5 {[%clk 0:02:51]} 8. Nb3 {[%clk 0:02:58]}  Qc7 {[%clk 0:02:52]} 9. Be3 {[%clk 0:02:56]}  Be7 {[%clk 0:02:51]} 10. Nd5 {[%clk 0:02:46]}  Nxd5 {[%clk 0:02:49]} 11. exd5 {[%clk 0:02:47]}  Nb8 {[%clk 0:02:50]} 12. Qd2 {[%clk 0:02:40]}  O-O {[%clk 0:02:48]} 13. a4 {[%clk 0:02:39]}  f5 {[%clk 0:02:47]} 14. f3 {[%clk 0:02:38]}  Nd7 {[%clk 0:02:44]} 15. Na5 {[%clk 0:02:38]}  Nf6 {[%clk 0:02:26]} 16. c4 {[%clk 0:02:35]}  Bd7 {[%clk 0:02:22]} 17. b4 {[%clk 0:02:29]}  b6 {[%clk 0:01:56]} 18. Nb3 {[%clk 0:02:29]}  a5 {[%clk 0:01:57]} 19. bxa5 {[%clk 0:02:11]}  bxa5 {[%clk 0:01:56]} 20. c5 {[%clk 0:02:12]}  dxc5 {[%clk 0:01:51]} 21. Rfc1 {[%clk 0:02:12]}  Rfb8 {[%clk 0:01:29]} 22. Nxc5 {[%clk 0:02:05]}  Bxc5 {[%clk 0:01:16]} 23. Bxc5 {[%clk 0:02:01]}  e4 {[%clk 0:01:00]} 24. Be7 {[%clk 0:01:36]}  Qe5 {[%clk 0:00:59]} 25. d6 {[%clk 0:01:34]}  Rb2 {[%clk 0:00:52]} 26. Bc4+ {[%clk 0:01:27]}  Kh8 {[%clk 0:00:46]} 27. Qc3 {[%clk 0:01:28]}  Qxc3 {[%clk 0:00:32]} 28. Rxc3 {[%clk 0:01:29]}  Rc8 {[%clk 0:00:33]} 29. Rac1 {[%clk 0:01:28]}  exf3 {[%clk 0:00:22]} 30. gxf3 {[%clk 0:01:29]}  Bxa4 {[%clk 0:00:15]} 31. Be6 {[%clk 0:01:28]}  Rxc3 {[%clk 0:00:11]} 32. Rxc3 {[%clk 0:01:29]}  Rc2 {[%clk 0:00:12]} 33. Rxc2 {[%clk 0:01:27]}  Bxc2 {[%clk 0:00:12]} 34. Bxf6 {[%clk 0:01:28]} 1-0


[Site "https://www.chess.com"]

[Event "Titled Tuesday Blitz March 07 Late 2023"]
[White "Martynov, Pavel"]
[Black "Vaglio Munoz, Jaime"]
[WhiteFideId "4101260"]
[BlackFideId "6500145"]
[WhiteElo "2314"]
[BlackElo "2199"]
[Result "1-0"]
[Round "07"]
[TimeControl "180+2"]
[Date "2023.03.07"]
[WhiteClock "0:02:01"]
[BlackClock "0:00:04"]

1. e4 {[%clk 0:03:00]}  d6 {[%clk 0:02:07]} 2. d4 {[%clk 0:02:59]}  Nf6 {[%clk 0:02:06]} 3. Nc3 {[%clk 0:02:57]}  e5 {[%clk 0:02:06]} 4. Nge2 {[%clk 0:02:56]}  Be7 {[%clk 0:02:03]} 5. g3 {[%clk 0:02:56]}  O-O {[%clk 0:02:02]} 6. Bg2 {[%clk 0:02:56]}  c6 {[%clk 0:01:51]} 7. O-O {[%clk 0:02:54]}  b5 {[%clk 0:01:20]} 8. a3 {[%clk 0:02:54]}  Bb7 {[%clk 0:01:16]} 9. h3 {[%clk 0:02:52]}  Nbd7 {[%clk 0:01:05]} 10. g4 {[%clk 0:02:52]}  h6 {[%clk 0:01:04]} 11. Be3 {[%clk 0:02:49]}  Re8 {[%clk 0:01:03]} 12. Ng3 {[%clk 0:02:49]}  Bf8 {[%clk 0:01:02]} 13. Qd2 {[%clk 0:02:43]}  a5 {[%clk 0:01:02]} 14. f4 {[%clk 0:02:36]}  b4 {[%clk 0:01:01]} 15. Nd1 {[%clk 0:02:33]}  exd4 {[%clk 0:00:59]} 16. Bxd4 {[%clk 0:02:30]}  c5 {[%clk 0:00:56]} 17. Bxf6 {[%clk 0:02:30]}  Nxf6 {[%clk 0:00:43]} 18. Nf2 {[%clk 0:02:30]}  Qb6 {[%clk 0:00:33]} 19. g5 {[%clk 0:02:28]}  hxg5 {[%clk 0:00:32]} 20. fxg5 {[%clk 0:02:29]}  Nd7 {[%clk 0:00:29]} 21. Ng4 {[%clk 0:02:29]}  Ne5 {[%clk 0:00:26]} 22. Qf4 {[%clk 0:02:29]}  c4+ {[%clk 0:00:20]} 23. Kh2 {[%clk 0:02:27]}  Qc7 {[%clk 0:00:19]} 24. Nh5 {[%clk 0:02:23]}  Ng6 {[%clk 0:00:06]} 25. Qg3 {[%clk 0:02:20]}  Rac8 {[%clk 0:00:06]} 26. Rf5 {[%clk 0:02:14]}  d5 {[%clk 0:00:04]} 27. Nhf6+ {[%clk 0:02:01]} 1-0


[Site "https://www.chess.com"]

[Event "Titled Tuesday Blitz March 07 Late 2023"]
[White "Papasimakopoulos, Alexandros"]
[Black "Yano, William Jorge Froes"]
[WhiteFideId "4244125"]
[BlackFideId "2112949"]
[WhiteElo "2359"]
[BlackElo "2122"]
[Result "1-0"]
[Round "07"]
[TimeControl "180+2"]
[Date "2023.03.07"]
[WhiteClock "0:00:22"]
[BlackClock "0:00:02"]

1. d4 {[%clk 0:02:56]}  Nf6 {[%clk 0:02:59]} 2. c4 {[%clk 0:02:54]}  Nc6 {[%clk 0:02:53]} 3. Nf3 {[%clk 0:02:53]}  e6 {[%clk 0:02:49]} 4. a3 {[%clk 0:02:53]}  a5 {[%clk 0:02:46]} 5. d5 {[%clk 0:02:51]}  Ne7 {[%clk 0:02:46]} 6. Nc3 {[%clk 0:02:49]}  d6 {[%clk 0:02:44]} 7. e4 {[%clk 0:02:49]}  e5 {[%clk 0:02:44]} 8. Bd3 {[%clk 0:02:47]}  Ng6 {[%clk 0:02:44]} 9. O-O {[%clk 0:02:48]}  Be7 {[%clk 0:02:42]} 10. Re1 {[%clk 0:02:46]}  O-O {[%clk 0:02:42]} 11. h3 {[%clk 0:02:43]}  b6 {[%clk 0:02:40]} 12. Rb1 {[%clk 0:02:42]}  Bd7 {[%clk 0:02:35]} 13. b4 {[%clk 0:02:42]}  axb4 {[%clk 0:02:35]} 14. axb4 {[%clk 0:02:43]}  Qc8 {[%clk 0:02:35]} 15. Bf1 {[%clk 0:02:41]}  h6 {[%clk 0:02:29]} 16. Be3 {[%clk 0:02:40]}  Ra3 {[%clk 0:02:27]} 17. Qc2 {[%clk 0:02:37]}  Nh5 {[%clk 0:02:26]} 18. Nb5 {[%clk 0:02:31]}  Ra8 {[%clk 0:02:10]} 19. c5 {[%clk 0:02:31]}  bxc5 {[%clk 0:02:07]} 20. bxc5 {[%clk 0:02:32]}  Ngf4 {[%clk 0:02:04]} 21. c6 {[%clk 0:02:07]}  Bxh3 {[%clk 0:02:04]} 22. gxh3 {[%clk 0:02:07]}  Nxh3+ {[%clk 0:02:04]} 23. Kh1 {[%clk 0:01:50]}  Bg5 {[%clk 0:01:38]} 24. Bxg5 {[%clk 0:01:23]}  hxg5 {[%clk 0:01:38]} 25. Nh2 {[%clk 0:01:16]}  N5f4 {[%clk 0:01:22]} 26. Re3 {[%clk 0:01:15]}  g6 {[%clk 0:01:18]} 27. Nxc7 {[%clk 0:01:15]}  Nxf2+ {[%clk 0:01:10]} 28. Qxf2 {[%clk 0:01:16]}  Qxc7 {[%clk 0:01:10]} 29. Rg3 {[%clk 0:01:11]}  f6 {[%clk 0:01:07]} 30. Rb7 {[%clk 0:01:11]}  Qa5 {[%clk 0:01:06]} 31. Ng4 {[%clk 0:01:08]}  Qa4 {[%clk 0:00:33]} 32. Re3 {[%clk 0:00:54]}  Qd1 {[%clk 0:00:30]} 33. Qf3 {[%clk 0:00:46]}  Qc1 {[%clk 0:00:24]} 34. Nh2 {[%clk 0:00:45]}  Ra1 {[%clk 0:00:23]} 35. Rc3 {[%clk 0:00:41]}  Qe1 {[%clk 0:00:22]} 36. c7 {[%clk 0:00:38]}  Raa8 {[%clk 0:00:14]} 37. Qe3 {[%clk 0:00:33]}  Qa1 {[%clk 0:00:08]} 38. Qc1 {[%clk 0:00:31]}  Qa5 {[%clk 0:00:07]} 39. c8=Q {[%clk 0:00:29]}  Raxc8 {[%clk 0:00:07]} 40. Rxc8 {[%clk 0:00:30]}  Qa4 {[%clk 0:00:06]} 41. Rxf8+ {[%clk 0:00:30]}  Kxf8 {[%clk 0:00:07]} 42. Qc8+ {[%clk 0:00:30]}  Qe8 {[%clk 0:00:07]} 43. Qc7 {[%clk 0:00:28]}  Nh5 {[%clk 0:00:05]} 44. Bb5 {[%clk 0:00:22]}  Qa8 {[%clk 0:00:02]} 45. Qf7# {[%clk 0:00:22]} 1-0


[Site "https://www.chess.com"]